Cogmind - Beta 15 @@@ ROGUE MODE // 2025.08.08 @ 17:09:42 Player: Endlessblaze Result: Destroyed by Y-45 Defender with Heavy Assault Rifle Performance ------------- Evolutions (1) 500 Regions Visited (2) 400 Robots Destroyed (13) 65 Value Destroyed (332) 332 Prototype IDs (1) 20 Alien Tech Used (0) 0 Bonus (0) 0 TOTAL SCORE: 1317 Bonus ------- None Cogmind --------- Core Integrity 0/400 Matter 272/300 Energy 100/100 System Corruption 0% Temperature Cool (0) Movement Core (50) Location -9/Materials Parts ------- > --- POWER (1) -------- (None) > --- PROPULSION (2) --- (None) > --- UTILITY (3) ------ Heat Sink > --- WEAPON (3) ------- (None) > --- INVENTORY (5) ---- Terrain Scanner Light Assault Rifle Light Assault Rifle Heavy Assault Rifle Welding Torch Peak State ------------ > --- POWER ------------ Backup Power I > --- PROPULSION ------- Light Treads Light Treads > --- UTILITY ---------- Heat Sink Sensor Array Targeting Computer > --- WEAPON ----------- Improved Assault Rifle Heavy Hammer > --- INVENTORY -------- Terrain Scanner Light Assault Rifle Light Assault Rifle Heavy Assault Rifle Welding Torch [Rating: 11] Favorites ----------- Power Ion Engine Engine Ion Engine Propulsion Aluminum Leg Treads Light Treads Leg Aluminum Leg Wheel Wheel Flight Unit Flight Unit Utility Small Storage Unit Device Sensor Array Storage Small Storage Unit Processor Targeting Computer Weapon Light Assault Rifle Energy Gun Medium Laser Ballistic Gun Light Assault Rifle Impact Weapon Heavy Hammer Build | -11 -10 -9 ------- Run | Yrd Mat Mat Slots Evolved 2 | . . 2 Power . | . . . Propulsion . | . . . Utility 1 | . . 1 Weapon 1 | . . 1 Parts Attached 24 | 6 9 9 Power 3 | 1 2 . Engine 3 | 1 2 . Core . | . . . Reactor . | . . . Propulsion 9 | 2 3 4 Treads 2 | . . 2 Leg 3 | 2 1 . Wheel 2 | . . 2 Hover . | . . . Flight 2 | . 2 . Utility 4 | 1 2 1 Device 2 | . 1 1 Storage 1 | 1 . . Processor 1 | . 1 . Hackware . | . . . Protection . | . . . Artifact . | . . . Weapon 8 | 2 2 4 Energy Gun 1 | 1 . . Energy Cannon . | . . . Ballistic Gun 6 | 1 2 3 Ballistic Cannon . | . . . Launcher . | . . . Special Weapon . | . . . Impact Weapon 1 | . . 1 Slashing Weapon . | . . . Piercing Weapon . | . . . Special Melee Weapon . | . . . Unidentified Prototypes 1 | . . 1 Parts Lost 15 | . 5 10 Power 3 | . 1 2 Propulsion 6 | . 2 4 Utility 2 | . . 2 Weapon 4 | . 2 2 Highest Loss Streak 6 | . 3 6 To Critical Strikes . | . . . Average Backups 3 | 1 3 4 Power . | . . . Propulsion 1 | 1 2 1 Utility 1 | . 1 . Weapon . | . . 2 Tool/Special . | . . . Unused Backups 4 | . . 4 Power . | . . . Propulsion 1 | . . 1 Utility 1 | . . 1 Weapon 1 | . . 1 Tool/Special 1 | . . 1 Average Slot Usage (%) 79 | . 78 81 Engine 9 | . 11 7 Treads 1 | . . 5 Leg 14 | . 21 . Flight 7 | . 4 13 Device 7 | . . 21 Storage 8 | . 13 . Processor 4 | . . 11 Energy Gun 5 | . 8 . Ballistic Gun 15 | . 15 15 Impact Weapon 1 | . . 4 Peak Build Rating 11 | 6 7 11 Average Rating 6 | 4 5 8 On Entrance 4 | . 6 7 Naked Turns . | . . . Heaviest Build 13 | 13 13 9 Greatest Support 40 | 20 20 40 Greatest Overweight (x) 2 | 1 2 . Average Overweight (x) . | . . . Largest Inventory Capacity 8 | 8 8 5 Average Capacity 6 | 6 7 5 Most Carried 5 | 2 5 5 Average Carried 3 | 1 4 4 Final Capacity 8 | 8 5 5 Final Carried 5 | 2 3 5 Class Distribution -------------------- 65% | Mutant 34% | Scavenger-Mutant Dominant Class ---------------- Mutant | -10/Materials Scavenger-Mutant | -9/Materials Resources | -11 -10 -9 ----------- Run | Yrd Mat Mat Matter Collected 438 | 192 192 54 Remotely . | . . . Salvage Created 359 | . 240 119 Parts 22 | . 14 8 Haulers Intercepted . | . . . Recyclers Shooed 1 | . . 1 Parts Field Recycled . | . . . Retrieved Matter . | . . . Parts Self-Destructed . | . . . Prevented . | . . . Kills | -11 -10 -9 ------- Run | Yrd Mat Mat Combat Hostiles Destroyed 13 | . 10 3 Melee 1 | . . 1 Guns 11 | . 9 2 Classes Destroyed 3 | . 2 1 Swarmer 6 | . 6 . Grunt 6 | . 4 2 Sentry 1 | . . 1 Best Kill Streak 3 | . 3 1 Combat Bots Only 3 | . 3 1 Max Kills in Single Turn 1 | . 1 1 Gunslinging . | . . . Exploded . | . . . Melee 1 | . . 1 Uniques/NPCs Destroyed . | . . . Combat | -11 -10 -9 -------- Run | Yrd Mat Mat Hostile Shots Fired 261 | . 103 158 Missed 100 | . 35 65 Hits 161 | . 68 93 Melee 3 | . . 3 Projectile 158 | . 68 90 Critical Strikes 6 | . 2 4 Damage Taken 1813 | . 623 1190 Core 532 | . 131 401 Absorbed by Shields . | . . . Core Remaining (%) 73 | 100 47 . Volleys Fired 50 | . 39 11 Largest 2 | . 2 2 Hottest 70 | . 70 40 Shots Fired 85 | . 63 22 Gun 85 | . 63 22 Cannon . | . . . Launcher . | . . . Special . | . . . Kinetic 59 | . 37 22 Thermal 26 | . 26 . Explosive . | . . . Electromagnetic . | . . . Robot Hit Streak 6 | . 6 6 Robot Miss Streak 4 | . 4 2 Penetration Max . | . . . Secondary Targets 2 | . 2 . Max Gunslinging Chain 1 | . 1 . Shots Hit Robots 67 | . 39 28 Core Hits 25 | . 18 7 Critical Kills 1 | . 1 . Critical Parts Destroyed . | . . . Critical Strikes 3 | . 2 1 Burn 1 | . 1 . Destroy 1 | . 1 . Smash 1 | . . 1 Melee Attacks 14 | . . 14 Impact 14 | . . 14 Slashing . | . . . Piercing . | . . . Sneak Attacks 1 | . . 1 Combat Hostiles . | . . . Follow-up Attacks . | . . . Damage Inflicted 1046 | . 465 581 Guns 530 | . 404 126 Cannons . | . . . Explosions . | . . . Melee 455 | . . 455 Ramming 61 | . 61 . Kinetic 329 | . 203 126 Thermal 201 | . 201 . Explosive . | . . . Electromagnetic . | . . . Impact 455 | . . 455 Slashing . | . . . Piercing . | . . . Highest Corruption . | . . . Average Corruption . | . . . Corruption Purged . | . . . Corruption Blocked . | . . . Overload Shots . | . . . Overflow Damage 35 | . 1 34 Projectiles . | . . . Explosions . | . . . Melee 35 | . 1 34 Knockbacks 2 | . . 2 Impact 2 | . . 2 Kinetic . | . . . Secondary . | . . . Self-Inflicted Damage 2 | . 2 . Shots . | . . . Rammed 1 | . 1 . Targets Rammed 35 | . 35 . Kicked 34 | . 34 . Crushed . | . . . Highest Temperature 205 | . 205 2 Average Temperature 85 | . 86 2 Received Heat Transfer 663 | . 123 540 Effects 1 | . 1 . Interference 1 | . 1 . Siege Activations . | . . . Martial Activations . | . . . Shielding Activations . | . . . Robots Disrupted . | . . . Combat Hostiles . | . . . Robots Corrupted 1 | . 1 . Combat Hostiles 1 | . 1 . Parts Fried . | . . . Impact Corruptions 3 | . 1 2 Robots Melted . | . . . Combat Hostiles . | . . . Parts Melted . | . . . Heat Transferred 666 | . 666 . Parts Sabotaged . | . . . Parts Stolen . | . . . Parts Stripped . | . . . Power Chain Reactions . | . . . Alert | -11 -10 -9 ------- Run | Yrd Mat Mat Maximum Alert Level . | . . . Low Security (%) 100 | 100 100 100 Level 1 . | . . . Level 2 . | . . . Level 3 . | . . . Level 4 . | . . . Level 5 . | . . . High Security . | . . . Max Security . | . . . Peak Influence 78 | . 78 31 Initial 1 | . . 1 Average 20 | . 28 8 Influence Increases 387 | . 258 129 Destroy 0b10 Robot/C 260 | . 200 60 Destroy Leader 40 | . 30 10 Successful Hack 41 | . 12 29 Disable Machine 15 | . . 15 Destroy Structure 1 | . 1 . Lose Combat Pursuer 30 | . 15 15 Influence Decreases 382 | . 252 130 Entered New Map 5 | . . 5 Time Decay 298 | . 202 96 Lost Part 75 | . 50 25 Lost Ally 4 | . . 4 Squads Dispatched 5 | . 2 3 Investigation 3 | . 1 2 Extermination . | . . . Reinforcement 2 | . 1 1 Assault . | . . . Garrison . | . . . Intercept . | . . . Searches Triggered . | . . . Construction Impeded . | . . . Haulers Reinforced . | . . . Active Scanning Responses . | . . . Cargo Convoy Interrupts . | . . . Stealth | -11 -10 -9 --------- Run | Yrd Mat Mat Distress Signals 3 | . . 3 Communications Jammed . | . . . Distress Signals . | . . . Times Spotted 35 | . 17 18 Peak Tracking Total 17 | . 6 17 Tactical Retreats 2 | . 1 1 Traps | -11 -10 -9 ------- Run | Yrd Mat Mat Traps Triggered 1 | . . 1 Indirectly . | . . . Trap Hack Attempts . | . . . Triggered . | . . . Disarmed . | . . . Reprogrammed . | . . . Reused . | . . . Traps Extracted . | . . . Installed . | . . . Triggered . | . . . Machines | -11 -10 -9 ---------- Run | Yrd Mat Mat Machines Disabled 1 | . . 1 Max in Single Turn 1 | . . 1 Machines Repaired . | . . . Machines Dismantled . | . . . Machines Sabotaged . | . . . Overloaded Fab Kills . | . . . Hacking | -11 -10 -9 --------- Run | Yrd Mat Mat Machines Accessed 12 | . 4 8 Terminals 8 | . 3 5 Fabricators . | . . . Repair Stations 1 | . . 1 Recycling Units 1 | . 1 . Scanalyzers 2 | . . 2 Garrison Access . | . . . Total Hacks 40 | . 17 23 Successful 26 | . 9 17 Failed 14 | . 8 6 Catastrophic 3 | . 3 . Database Lockouts . | . . . Manual 18 | . 8 10 Terminals 29 | . 14 15 Fabricators . | . . . Repair Stations 2 | . . 2 Recycling Units 3 | . 3 . Scanalyzers 6 | . . 6 Garrison Access . | . . . Terminal Hacks 9 | . 5 4 Record 2 | . 1 1 Robot Analysis 1 | . 1 . Emergency Access Points 1 | . . 1 Terminal Index 1 | . . 1 Locate Traps 2 | . 2 . Security Status 1 | . 1 . Zone Layout 1 | . . 1 Fabricator Hacks . | . . . Repair Station Hacks 1 | . . 1 Refit 1 | . . 1 Recycling Unit Hacks 3 | . 3 . Report Inventory 1 | . 1 . Retrieve Components 2 | . 2 . Scanalyzer 5 | . . 5 Insert Component 2 | . . 2 Analyze 3 | . . 3 Garrison Access Hacks . | . . . Unauthorized Hacks 8 | . 1 7 Terminals 8 | . 1 7 Assimilate 2 | . . 2 Botnet 6 | . 1 5 Fabricators . | . . . Repair Stations . | . . . Recycling Units . | . . . Scanalyzers . | . . . Garrison Access . | . . . Data Cores Recovered . | . . . Used . | . . . Hacking Detections 11 | . 4 7 Full Trace Events 3 | . 2 1 Feedback Events . | . . . Feedback Blocked . | . . . Robot Schematics Acquired . | . . . Robots Built . | . . . Authchips . | . . . Time . | . . . Total Robot Build Rating . | . . . Part Schematics Acquired 1 | . . 1 Parts Built . | . . . Authchips . | . . . Time . | . . . Total Part Build Rating . | . . . Parts Repaired . | . . . Time . | . . . Parts Recycled . | . . . Recycled Matter . | . . . Retrieved Matter . | . . . Retrieved Components 9 | . 9 . Parts Scanalyzed 2 | . . 2 Part Schematics Acquired 1 | . . 1 Parts Damaged . | . . . Bothacking | -11 -10 -9 ------------ Run | Yrd Mat Mat Used RIF Installer . | . . . Robots Hacked . | . . . Non-combat . | . . . Combat . | . . . Robot Hacks Applied . | . . . Relay Couplers Released . | . . . Fabnet Peak Effective % . | . . . Robots Rewired . | . . . Allies Hacked . | . . . Hacks Repelled . | . . . Allies | -11 -10 -9 -------- Run | Yrd Mat Mat Total Allies 1 | . . 1 Largest Group 1 | . . 1 Highest-Rated Group 10 | . . 10 Highest-Rated Ally 10 | . . 10 Total Orders 1 | . . 1 FOLLOW 1 | . . 1 Ally Attacks . | . . . Total Damage . | . . . Kills . | . . . Allies Corrupted . | . . . Allies Melted . | . . . Intel | -11 -10 -9 ------- Run | Yrd Mat Mat Active Infowar (turns) 305 | . 37 268 Sensors 305 | . 37 268 Robot Analysis Total 1 | . 1 . Derelict Logs Recovered . | . . . Drone Launches . | . . . Drone Recoveries . | . . . Exploration | -11 -10 -9 ------------- Run | Yrd Mat Mat Turns Passed 928 | 62 571 295 Spaces Moved 835 | 55 388 392 Core 35 | 24 7 4 Treads 28 | . . 28 Legs 314 | 31 283 . Wheels 39 | . . 39 Hover . | . . . Flight 419 | . 98 321 Fastest Speed 37 | 50 37 37 Average Speed 79 | 94 107 50 Slowest Speed 190 | 120 190 160 Overloaded Moves . | . . . Propulsion Burnouts . | . . . Robots Hopped 5 | . . 5 Potential Cave-ins . | . . . Cave-ins Triggered . | . . . Exploration Rate (%) 29 | 3 41 45 Regions Visited 2 Branch Regions . Pre-discovered Areas . | . . . Known Exits Taken . | . . . Unknown Exits Taken 2 | 1 1 . Scrap Searched . | . . . Spaces Dug . | . . . Terrain Destroyed . | . . . Melee . | . . . Projectile . | . . . AOE . | . . . Terrain Rammed . | . . . Walls Destroyed . | . . . Machines Disabled . | . . . Actions | -11 -10 -9 --------- Run | Yrd Mat Mat Total 985 | 62 477 446 Wait 8 | . . 8 Move 823 | 54 387 382 Hop 5 | . . 5 Pick Up 11 | 2 3 6 Fast Attach 16 | 6 6 4 Attach 10 | . 3 7 Detach 5 | . . 5 Swap 1 | . 1 . Drop 7 | . 3 4 Fire 50 | . 39 11 Melee 14 | . . 14 Ram 1 | . 1 . Kick 34 | . 34 . Crush . | . . . Escape Stasis . | . . . Rewire . | . . . Trap . | . . . Miscellaneous . | . . . Route ------- -11/Scrapyard -10/Materials -9/Materials (discovered 1 exit: [Min]) History --------- Turn | Location | Event 6 | -11/Scrapyard | Discovered new exit (range 16) 63 | -11/Scrapyard | Entered Materials 311 | -10/Materials | Build established: Mutant 398 | -10/Materials | Discovered new exit (range 9) 459 | -10/Materials | Lost 3 parts (1n2w) 470 | -10/Materials | Core integrity fell below 50% 634 | -10/Materials | Entered another Materials area 634 | -9/Materials | Evolved 2 slots: Utility x1, Weapon x1 777 | -9/Materials | Build established: Scavenger-Mutant 812 | -9/Materials | Core integrity fell below 50% 841 | -9/Materials | Lost 4 parts (1p3n) 864 | -9/Materials | Discovered new exit (range 16) 926 | -9/Materials | Core integrity fell below 20% 929 | -9/Materials | Destroyed by Y-45 Defender with Heavy Assault Rifle Last Messages --------------- G-34 Mercenary destroyed. Critical hit (Burn: +37). O-16 Technician sends out distress signal. O-16 Technician: "IFF HANDSHAKE FAILED. SECURING TERMINAL." Sensor Array destroyed. ALERT: Hostiles spotted, dispatching reinforcements to Terminal M002. G-34 Mercenary destroyed. K-01 Serf collects debris. Y-45 Defender suffers critical hit (Smash). K-01 Serf collects debris. Destroyed Heat Sink. Y-45 Defender system corrupted by crushing effect. Lgt. Treads destroyed. Imp. Assault Rifle destroyed. Backup Power I destroyed. Hvy. Hammer destroyed. Lgt. Treads severed. Targeting Computer destroyed. Map ----- +----------------------------------------------------+ | ????????????????????????????????????????????????? | | ????????????????????????????????????????????????? | | ????????????????????????????????????????????????? | | ????????????????????????????????????????????????? | | ????????????????????????????????????????????????? | | ????????????????????????????????????????????????? | | ????????????????????????????????????????????????? | | ?????????????????????????????? ???????????????? | | ?????????????????????????????# #??????????????? | | ?????????????????????????????# #??????????????? | | ?????????????????????????????# #??????????????? | | ??????????????????????????##?# #??????????????? | | ??????????????????????#### #?# #??????????????? | | ??????????????????????# #?# #??????????????? | | ??????????????????????? #?# #??????????????? | | ??????????????????????? **[#?# #??????????????? | | ??????????????????????# **[#?# #??????????????? | | ??????????????????????# **[#?# #??????????????? | | ??????????????????????# #?# #??????????????? | | ??????????????????????# #?# ###########????? | | ??????????????????????# ??# ## #????? | | ??????????#???????????? ### ## """ #?# | | ?????????? ###+######Y### # """ #?# < | | ?????????# l =# r """ #?# | | ?????????# g =%g Y #?# | | ?????????# @ g %#[""" #?# | | ?????????? ###+######;### # R =#?## | | ???????????????????????# ####### """ #??# | | ???????????????????????# #?????# #??# | | ???????????????????????# #?????####/#####??# | | ???????????????????????# #????????# #??????# | | ???????????????????????# #????????# #??????# | | ???????????????????????# #????##?## ######## | | ???????????????????????# #????# # %= | | ???????????????????????# #????# ^ ^ | | ???????????????????????# #????# # "" ^ | | ???????????????????????######????#### "T | | ????????????????????????????????????# "" | | ????????????????????????????????????# | | ????????????????????????????????????# | | ????????????????????????????????????# | | ?????????????????????????????????#####+#########+ | | ?????????????????????????????????# # | | ?????????????????????????????????# # | | ?????????????????????????????????# # | | ?????????????????????????????????# # | | ?????????????????????????????????# # """" | | ?????????????????????????????????# # """" | | ?????????????????????????????????# # """" | | ?????????????????????????????????# # | +----------------------------------------------------+ Best States ------------- Heat Dissipation 38 Energy Generation 10 Energy Capacity 250 Matter Stores 300 Matter Capacity 300 Sight Range 16 Robot Scan Range 14 Terrain Scan Density 10 Evasion (%) 62 Targeting Accuracy 5 Recoil Reduction 2 Item Schematics ----------------- Hvy. Assault Rifle | -9/Materials | Scanalyzed Robot Schematics ------------------ None Fabricated ------------ Nothing Repaired ---------- Nothing Alien Tech Used ----------------- None Achievements -------------- None Challenges ------------ None Game ------ Seed FactorySpikedMembrane Manual? 0 Play Time 00:16:49 Cumulative 23.0 hours Start 2025.08.08 @ 16:54:23 End 2025.08.08 @ 17:09:42 Sessions 1 Manual Loads 0 Difficulty Rogue Special Mode None Game No. 30 Rogue 30 Adventurer 0 Explorer 0 Win Type - Total 0 Types 0/0/0/0/0/0/0/0/0/0 Lore% 24 Gallery% 23 Achievement% 23 Wizard Run 0 Options --------- Layout 1 ASCII 0 Keyboard 0 Movement Arrows Keybinds 0 Fullscreen 1 Font 16/SmallcapsGlow Map View 55x38 Zoom Use 0% Tactical HUD 0 Map Filters NONE Filters NONE Steam 1 RUN: 74d3829c-37f5-45c0-a6a2-b0569b7fae2e